fUST/lending_fUST_20241025
["ID","MTS","AMOUNT","RATE_DAILY","PERIOD"]
[340784933,1729815032672,-640.0144434,0.0001342,2]
[340784935,1729815032682,-3804.04256895,0.00013456,2]
[340785020,1729815040667,-3603.42029565,0.00013456,2]
[340785021,1729815040676,-300.0,0.00013576,2]
[340785023,1729815040686,-300.0,0.00013577,2]
[340785024,1729815040696,-4466.70544572,0.00013578,2]
[340785026,1729815040706,-150.969,0.00013614,2]
[340785027,1729815040714,-527.0,0.00013614,2]
[340785028,1729815040724,-1151.0,0.00013614,2]
[340785029,1729815040733,-2396.0,0.00013614,2]
[340785030,1729815040742,-5645.2882858,0.00013671,2]
[340785031,1729815040751,-500.0,0.00013673,2]
[340785032,1729815040760,-500.0,0.00013673,2]
[340785033,1729815040770,-500.0,0.00013673,2]
[340785034,1729815040780,-546.79850904,0.00013673,2]
[340785035,1729815040790,-500.0,0.00013673,2]
[340785036,1729815040799,-151.0,0.00013678,2]
[340785037,1729815040811,-253.90165891,0.00013678,2]
[340785038,1729815040821,-40403.0430937,0.00013678,2]
[340785039,1729815040832,-90885.8135742,0.00013678,2]
[340785040,1729815040843,-5000.0,0.00013688,2]
[340785041,1729815040854,-201.491393,0.00013688,2]
[340785042,1729815040864,-201.491393,0.00013688,2]
[340785043,1729815040873,-151.0,0.00013688,2]
[340785044,1729815040885,-151.0,0.00013688,2]
[340785045,1729815040896,-151.0,0.00013688,2]
[340785046,1729815040907,-151.0,0.00013688,2]
[340785047,1729815040918,-151.0,0.00013688,2]
[340785048,1729815040928,-90906.8469609,0.00013688,2]
[340785049,1729815040939,-181771.627148,0.00013688,2]
[340785050,1729815040948,-231.0,0.0001369,2]
[340785051,1729815040959,-5920.13932194,0.00013697,2]
[340785052,1729815040969,-500.0,0.00013698,2]
[340785053,1729815040978,-219.74509806,0.00013698,2]
[340785054,1729815040988,-500.0,0.00013698,2]
[340785055,1729815040997,-500.0,0.00013698,2]
[340785056,1729815041006,-500.0,0.00013698,2]
[340785057,1729815041015,-500.0,0.00013698,2]
[340785058,1729815041024,-500.0,0.00013698,2]
[340785059,1729815041034,-500.0,0.00013698,2]
[340785060,1729815041043,-500.0,0.00013698,2]
[340785061,1729815041052,-500.0,0.00013698,2]
[340785062,1729815041062,-500.0,0.00013698,2]
[340785063,1729815041071,-500.0,0.00013698,2]
[340785064,1729815041081,-500.0,0.00013698,2]
[340785065,1729815041090,-500.0,0.00013698,2]
[340785066,1729815041101,-500.0,0.00013698,2]
[340785067,1729815041111,-499.99999999,0.00013698,2]
[340785068,1729815041120,-460.21579833,0.00013698,2]
[340785069,1729815041129,-500.0,0.00013698,2]
[340785070,1729815041138,-500.0,0.00013698,2]
[340785071,1729815041147,-500.0,0.00013698,2]
[340785072,1729815041156,-500.0,0.00013698,2]
[340785073,1729815041165,-500.0,0.00013698,2]
[340785074,1729815041174,-411.02952305,0.00013698,2]
[340785075,1729815041183,-492.9953314,0.00013698,2]
[340785076,1729815041193,-500.0,0.00013698,2]
[340785077,1729815041202,-468.14392461,0.00013698,2]
[340785078,1729815041211,-500.0,0.00013698,2]
[340785079,1729815041221,-151.0,0.00013698,2]
[340785080,1729815041231,-151.0,0.00013698,2]
[340785081,1729815041242,-500.0,0.00013698,2]
[340785082,1729815041251,-500.0,0.00013698,2]
[340785083,1729815041260,-500.0,0.00013698,2]
[340785084,1729815041269,-504.99659486,0.00013698,2]
[340785085,1729815041278,-500.0,0.00013698,2]
[340785086,1729815041288,-500.0,0.00013698,2]
[340785087,1729815041297,-500.0,0.00013698,2]
[340785088,1729815041307,-500.0,0.00013698,2]
[340785089,1729815041316,-600.90232501,0.00013698,2]
[340785090,1729815041325,-500.0,0.00013698,2]
[340785091,1729815041334,-500.0,0.00013698,2]
[340785092,1729815041343,-500.0,0.00013698,2]
[340785093,1729815041353,-500.0,0.00013698,2]
[340785094,1729815041364,-500.0,0.00013698,2]
[340785095,1729815041373,-500.0,0.00013698,2]
[340785096,1729815041384,-200.0,0.00013698,2]
[340785097,1729815041393,-500.0,0.00013698,2]
[340785098,1729815041402,-151.0,0.00013698,2]
[340785099,1729815041412,-151.0,0.00013698,2]
[340785100,1729815041421,-151.0,0.00013698,2]
[340785101,1729815041430,-542.11989526,0.00013698,2]
[340785102,1729815041439,-542.11989526,0.00013698,2]
[340785103,1729815041448,-542.11989526,0.00013698,2]
[340785104,1729815041457,-542.11989526,0.00013698,2]
[340785105,1729815041466,-542.11989526,0.00013698,2]
[340785106,1729815041475,-542.11989526,0.00013698,2]
[340785107,1729815041484,-542.11989526,0.00013698,2]
[340785108,1729815041493,-500.0,0.00013698,2]
[340785109,1729815041503,-500.0,0.00013698,2]
[340785110,1729815041512,-500.0,0.00013698,2]
[340785111,1729815041521,-563.5327737,0.00013698,2]
[340785112,1729815041530,-481.20192361,0.00013698,2]
[340785113,1729815041540,-300.89049391,0.00013698,2]
[340785114,1729815041549,-500.0,0.00013698,2]
[340785115,1729815041558,-500.0,0.00013698,2]
[340785116,1729815041567,-500.0,0.00013698,2]
[340785117,1729815041576,-500.0,0.00013698,2]
[340785118,1729815041585,-500.0,0.00013698,2]
[340785119,1729815041594,-500.0,0.00013698,2]
[340785120,1729815041604,-500.0,0.00013698,2]
[340785121,1729815041614,-500.0,0.00013698,2]
[340785122,1729815041624,-306.24744356,0.00013698,2]
[340785123,1729815041634,-500.0,0.00013698,2]
[340785124,1729815041644,-500.0,0.00013698,2]
[340785125,1729815041655,-500.0,0.00013698,2]
[340785126,1729815041664,-500.0,0.00013698,2]
[340785127,1729815041673,-500.0,0.00013698,2]
[340785128,1729815041683,-419.38174921,0.00013698,2]
[340785129,1729815041692,-500.0,0.00013698,2]
[340785130,1729815041703,-500.0,0.00013698,2]
[340785131,1729815041949,-500.0,0.00013698,2]
[340785132,1729815041959,-500.0,0.00013698,2]
[340785133,1729815041969,-500.0,0.00013698,2]
[340785134,1729815041978,-489.38846364,0.00013698,2]
[340785135,1729815041987,-443.69700023,0.00013698,2]
[340785136,1729815041997,-151.0,0.00013698,2]
[340785137,1729815042006,-151.0,0.00013698,2]
[340785138,1729815042015,-561.44923914,0.00013698,2]
[340785139,1729815042024,-232.11165422,0.00013698,2]
[340785140,1729815042034,-500.0,0.00013698,2]
[340785141,1729815042043,-500.0,0.00013698,2]
[340785142,1729815042052,-500.0,0.00013698,2]
[340785143,1729815042062,-500.0,0.00013698,2]
[340785144,1729815042072,-500.0,0.00013698,2]
[340785145,1729815042081,-151.0,0.00013698,2]
[340785146,1729815042090,-151.0,0.00013698,2]
[340785147,1729815042100,-151.0,0.00013698,2]
[340785148,1729815042110,-222.611539,0.00013698,2]
[340785149,1729815042119,-574.43,0.00013698,2]
[340785150,1729815042129,-500.0,0.00013698,2]
[340785151,1729815042138,-819.17,0.00013698,2]
[340785152,1729815042148,-500.0,0.00013698,2]
[340785153,1729815042157,-500.0,0.00013698,2]
[340785154,1729815042166,-500.0,0.00013698,2]
[340785155,1729815042175,-500.0,0.00013698,2]
[340785156,1729815042185,-775.89,0.00013698,2]
[340785157,1729815042194,-500.0,0.00013698,2]
[340785158,1729815042204,-576.40457011,0.00013698,2]
[340785159,1729815042213,-832.9,0.00013698,2]
[340785160,1729815042222,-500.0,0.00013698,2]
[340785161,1729815042232,-500.0,0.00013698,2]
[340785162,1729815042241,-565.86678767,0.00013698,2]
[340785163,1729815042250,-926.45,0.00013698,2]
[340785164,1729815042260,-160.603067,0.00013698,2]
[340785165,1729815042269,-500.0,0.00013698,2]
[340785166,1729815042279,-500.0,0.00013698,2]
[340785167,1729815042288,-500.0,0.00013698,2]
[340785168,1729815042297,-500.0,0.00013698,2]
[340785169,1729815042307,-500.0,0.00013698,2]
[340785170,1729815042316,-500.0,0.00013698,2]
[340785171,1729815042325,-500.0,0.00013698,2]
[340785172,1729815042335,-500.0,0.00013698,2]
[340785173,1729815042346,-1624.83,0.00013698,2]
[340785174,1729815042357,-500.0,0.00013698,2]
[340785175,1729815042370,-500.0,0.00013698,2]
[340785176,1729815042379,-500.0,0.00013698,2]
[340785177,1729815042389,-151.0,0.00013698,2]
[340785178,1729815042398,-500.0,0.00013698,2]
[340785179,1729815042408,-151.0,0.00013698,2]
[340785180,1729815042418,-155.541138,0.00013698,2]
[340785181,1729815042427,-500.0,0.00013698,2]
[340785182,1729815042438,-470.17858247,0.00013698,2]
[340785183,1729815042448,-500.0,0.00013698,2]
[340785184,1729815042458,-709.38,0.00013698,2]
[340785185,1729815042467,-500.0,0.00013698,2]
[340785186,1729815042476,-500.0,0.00013698,2]
[340785187,1729815042486,-500.0,0.00013698,2]
[340785188,1729815042495,-500.0,0.00013698,2]
[340785189,1729815042504,-807.68,0.00013698,2]
[340785190,1729815042514,-500.0,0.00013698,2]
[340785191,1729815042523,-500.0,0.00013698,2]
[340785192,1729815042532,-601.61,0.00013698,2]
[340785193,1729815042544,-151.0,0.00013698,2]
[340785194,1729815042554,-256.43008793,0.00013698,2]
[340785195,1729815042564,-734.02,0.00013698,2]
[340785196,1729815042573,-597.51869157,0.00013698,2]
[340785197,1729815042584,-500.0,0.00013698,2]
[340785198,1729815042595,-342.84866657,0.00013698,2]
[340785199,1729815042604,-2090.89,0.00013698,2]
[340785200,1729815042623,-151.0,0.00013698,2]
[340785201,1729815042636,-500.0,0.00013698,2]
[340785202,1729815042647,-500.0,0.00013698,2]
[340785203,1729815042658,-500.0,0.00013698,2]
[340785204,1729815042668,-500.0,0.00013698,2]
[340785205,1729815042677,-500.0,0.00013698,2]
[340785206,1729815042690,-500.0,0.00013698,2]
[340785207,1729815042701,-500.0,0.00013698,2]
[340785208,1729815042711,-500.0,0.00013698,2]
[340785209,1729815042722,-494.21347529,0.00013698,2]
[340785210,1729815042733,-770.99,0.00013698,2]
[340785211,1729815042743,-160.0,0.00013698,2]
[340785212,1729815042754,-500.0,0.00013698,2]
[340785213,1729815042764,-500.0,0.00013698,2]
[340785214,1729815042774,-532.99,0.00013698,2]
[340785215,1729815042783,-500.0,0.00013698,2]
[340785216,1729815042792,-500.0,0.00013698,2]
[340785217,1729815042802,-1149.3,0.00013698,2]
[340785218,1729815042812,-500.0,0.00013698,2]
[340785219,1729815042822,-151.0,0.00013698,2]
[340785220,1729815042832,-151.0,0.00013698,2]
[340785221,1729815042843,-151.0,0.00013698,2]
[340785222,1729815042852,-151.0,0.00013698,2]
[340785223,1729815042862,-500.0,0.00013698,2]
[340785224,1729815042871,-500.0,0.00013698,2]
[340785225,1729815042881,-679.12,0.00013698,2]
[340785226,1729815042890,-500.0,0.00013698,2]
[340785227,1729815042901,-500.0,0.00013698,2]
[340785228,1729815042910,-500.0,0.00013698,2]
[340785229,1729815042920,-1028.18,0.00013698,2]
[340785230,1729815042929,-500.0,0.00013698,2]
[340785231,1729815042938,-500.0,0.00013698,2]
[340785232,1729815042948,-500.0,0.00013698,2]
[340785233,1729815042958,-500.0,0.00013698,2]
[340785234,1729815042968,-500.0,0.00013698,2]
[340785235,1729815042978,-559.82,0.00013698,2]
[340785236,1729815042987,-2431.1,0.00013698,2]
[340785237,1729815042997,-170.796888,0.00013698,2]
[340785238,1729815043006,-170.796888,0.00013698,2]
[340785239,1729815043016,-170.796888,0.00013698,2]
[340785240,1729815043025,-170.796888,0.00013698,2]
[340785241,1729815043035,-841.65,0.00013698,2]
[340785242,1729815043045,-170.796888,0.00013698,2]
[340785243,1729815043055,-170.796888,0.00013698,2]
[340785244,1729815043065,-170.796888,0.00013698,2]
[340785245,1729815043074,-170.796888,0.00013698,2]
[340785246,1729815043083,-1639.83,0.00013698,2]
[340785247,1729815043094,-1542.64,0.00013698,2]
[340785248,1729815043106,-562.06,0.00013698,2]
[340785249,1729815043115,-500.0,0.00013698,2]
[340785250,1729815043124,-321.43903898,0.00013698,2]
[340785251,1729815043134,-189.77685817,0.00013698,2]
[340785252,1729815043144,-1356.49,0.00013698,2]
[340785253,1729815043153,-785.86,0.00013698,2]
[340785254,1729815043164,-517.88,0.00013698,2]
[340785255,1729815043174,-1612.41,0.00013698,2]
[340785256,1729815043184,-500.0,0.00013698,2]
[340785257,1729815043193,-500.0,0.00013698,2]
[340785258,1729815043203,-500.0,0.00013698,2]
[340785259,1729815043212,-857.01,0.00013698,2]
[340785260,1729815043222,-500.0,0.00013698,2]
[340785261,1729815043239,-500.0,0.00013698,2]
[340785262,1729815043249,-500.0,0.00013698,2]
[340785263,1729815043258,-500.0,0.00013698,2]
[340785264,1729815043268,-862.94,0.00013698,2]
[340785265,1729815043277,-500.0,0.00013698,2]
[340785266,1729815043287,-1164.19,0.00013698,2]
[340785267,1729815043297,-151.0,0.00013698,2]
[340785268,1729815043306,-151.0,0.00013698,2]
[340785269,1729815043316,-151.0,0.00013698,2]
[340785271,1729815043326,-151.0,0.00013698,2]
[340785273,1729815043338,-287.51511782,0.00013698,2]
[340785419,1729815046725,-212.48488218,0.00013698,2]
[340785420,1729815046736,-151.0,0.00013698,2]
[340785421,1729815046745,-151.0,0.00013698,2]
[340785422,1729815046755,-151.0,0.00013698,2]
[340785423,1729815046765,-111.06798635,0.00013698,2]
[340785424,1729815448359,500.0,0.00022,60]
[340785425,1729815474196,500.0,0.00022,60]
[340785426,1729815477878,176.0,0.0001925,60]
[340785430,1729816109948,823.79257606,0.00012,7]
[340785431,1729816140768,300.0,0.00016,5]
[340785432,1729816159349,300.0,0.00016,5]
[340785433,1729816173536,300.0,0.00016,6]
[340785460,1729816237926,-500.0,0.0001292,2]
[340785461,1729816237940,-500.0,0.0001342,2]
[340785462,1729816237955,-300.0,0.00013586,2]
[340785463,1729816237968,-300.0,0.00013586,2]
[340785464,1729816237983,-527.0,0.00013587,2]
[340785465,1729816237995,-1151.0,0.00013587,2]
[340785466,1729816238006,-2396.0,0.00013587,2]
[340785467,1729816238018,-3908.36726504,0.00013588,2]
[340785468,1729816238030,-218.78260052,0.00013588,2]
[340785469,1729816238043,-218.78260052,0.00013598,2]
[340785470,1729816238054,-200.91783311,0.000136,4]
[340785471,1729816238066,-500.0,0.00013673,2]
[340785472,1729816238079,-500.0,0.00013673,2]
[340785473,1729816238091,-500.0,0.00013673,2]
[340785474,1729816238104,-500.0,0.00013673,2]
[340785475,1729816238117,-500.0,0.00013673,2]
[340785476,1729816238133,-323.26327708,0.00013678,2]
[340785477,1729816238148,-10605.7988121,0.00013678,2]
[340785478,1729816238161,-27265.7440723,0.00013678,2]
[340785479,1729816238172,-28282.1301656,0.00013688,2]
[340785480,1729816238184,-44057.24269734,0.00013688,2]
[340785481,1729816238196,-1908.21871739,0.00013688,2]
[340785482,1729816238238,-545.05576626,0.00013688,2]
[340785483,1729816238253,-1950.0,0.00013688,2]
[340785488,1729816239862,-24248.13367841,0.00013688,2]
[340785489,1729816239876,-351.39760336,0.0001369,4]
[340785490,1729816239889,-469.48215488,0.00013692,2]
[340785491,1729816239901,-500.0,0.00013698,2]
[340785492,1729816239915,-500.0,0.00013698,2]
[340785493,1729816239927,-500.0,0.00013698,2]
[340785494,1729816239939,-500.0,0.00013698,2]
[340785495,1729816239952,-500.0,0.00013698,2]
[340785496,1729816239963,-500.0,0.00013698,2]
[340785497,1729816239978,-500.0,0.00013698,2]
[340785498,1729816239988,-500.0,0.00013698,2]
[340785499,1729816240000,-500.0,0.00013698,2]
[340785500,1729816240011,-500.0,0.00013698,2]
[340785501,1729816240023,-500.0,0.00013698,2]
[340785502,1729816240035,-500.0,0.00013698,2]
[340785503,1729816240046,-500.0,0.00013698,2]
[340785504,1729816240057,-500.0,0.00013698,2]
[340785505,1729816240067,-500.0,0.00013698,2]
[340785506,1729816240078,-500.0,0.00013698,2]
[340785507,1729816240088,-500.0,0.00013698,2]
[340785508,1729816240099,-500.0,0.00013698,2]
[340785509,1729816240109,-500.0,0.00013698,2]
[340785510,1729816240122,-500.0,0.00013698,2]
[340785511,1729816240132,-500.0,0.00013698,2]
[340785512,1729816240144,-500.0,0.00013698,2]
[340785513,1729816240154,-500.0,0.00013698,2]
[340785514,1729816240165,-500.0,0.00013698,2]
[340785515,1729816240177,-500.0,0.00013698,2]
[340785516,1729816240187,-500.0,0.00013698,2]
[340785517,1729816240198,-500.0,0.00013698,2]
[340785518,1729816240208,-500.0,0.00013698,2]
[340785519,1729816240219,-500.0,0.00013698,2]
[340785520,1729816240229,-500.0,0.00013698,2]
[340785521,1729816240240,-500.0,0.00013698,2]
[340785522,1729816240251,-500.0,0.00013698,2]
[340785523,1729816240263,-500.0,0.00013698,2]
[340785524,1729816240275,-500.0,0.00013698,2]
[340785525,1729816240286,-500.0,0.00013698,2]
[340785526,1729816240297,-500.0,0.00013698,2]
[340785527,1729816240309,-500.0,0.00013698,2]
[340785528,1729816240319,-500.0,0.00013698,2]
[340785529,1729816240330,-500.0,0.00013698,2]
[340785530,1729816240341,-500.0,0.00013698,2]
[340785531,1729816240352,-500.0,0.00013698,2]
[340785532,1729816240362,-500.0,0.00013698,2]
[340785533,1729816240375,-500.0,0.00013698,2]
[340785534,1729816240388,-310.8526961,0.00013698,2]
[340785535,1729816240399,-151.0,0.00013698,2]
[340785536,1729816240410,-151.0,0.00013698,2]
[340785537,1729816240422,-151.0,0.00013698,2]
[340785538,1729816240434,-151.0,0.00013698,2]
[340785539,1729816240445,-151.0,0.00013698,2]
[340785540,1729816240457,-151.0,0.00013698,2]
[340785541,1729816240469,-151.0,0.00013698,2]
[340785542,1729816240479,-171.107833,0.00013698,2]
[340785543,1729816240490,-151.0,0.00013698,2]
[340785544,1729816240502,-151.0,0.00013698,2]
[340785545,1729816240513,-151.0,0.00013698,2]
[340785546,1729816240524,-151.0,0.00013698,2]
[340785547,1729816240535,-500.0,0.00013698,2]
[340785548,1729816240546,-500.0,0.00013698,2]
[340785549,1729816240556,-500.0,0.00013698,2]
[340785550,1729816240567,-500.0,0.00013698,2]
[340785551,1729816240578,-500.0,0.00013698,2]
[340785552,1729816240590,-500.0,0.00013698,2]
[340785553,1729816240601,-500.0,0.00013698,2]
[340785554,1729816240612,-332.95028937,0.00013698,2]
[340785555,1729816240624,-500.0,0.00013698,2]
[340785556,1729816240635,-500.0,0.00013698,2]
[340785557,1729816240645,-500.0,0.00013698,2]
[340785558,1729816240656,-304.02111749,0.00013698,2]
[340785559,1729816240668,-500.0,0.00013698,2]
[340785560,1729816240678,-500.0,0.00013698,2]
[340785561,1729816240690,-500.0,0.00013698,2]
[340785562,1729816240700,-500.0,0.00013698,2]
[340785563,1729816240711,-296.490792,0.00013698,2]
[340785564,1729816240722,-500.0,0.00013698,2]
[340785565,1729816240733,-500.0,0.00013698,2]
[340785566,1729816240744,-500.0,0.00013698,2]
[340785567,1729816240755,-500.0,0.00013698,2]
[340785568,1729816240766,-500.0,0.00013698,2]
[340785569,1729816240777,-500.0,0.00013698,2]
[340785570,1729816240789,-500.0,0.00013698,2]
[340785571,1729816240800,-500.0,0.00013698,2]
[340785572,1729816240811,-500.0,0.00013698,2]
[340785573,1729816240822,-500.0,0.00013698,2]
[340785574,1729816240833,-500.0,0.00013698,2]
[340785575,1729816240843,-500.0,0.00013698,2]
[340785576,1729816240854,-500.0,0.00013698,2]
[340785577,1729816240865,-500.0,0.00013698,2]
[340785578,1729816240876,-500.0,0.00013698,2]
[340785579,1729816240887,-500.0,0.00013698,2]
[340785580,1729816240898,-500.0,0.00013698,2]
[340785581,1729816240909,-500.0,0.00013698,2]
[340785582,1729816240920,-350.0,0.00013698,2]
[340785583,1729816240931,-500.0,0.00013698,2]
[340785584,1729816240942,-500.0,0.00013698,2]
[340785585,1729816240952,-500.0,0.00013698,2]
[340785586,1729816240965,-500.0,0.00013698,2]
[340785587,1729816240979,-26.59655997,0.00013698,2]
[340785604,1729816532483,167.0,0.000198,60]
[340785607,1729817121767,500.0,0.00022,60]
[340785608,1729817141939,500.0,0.00022,60]
[340785610,1729817223958,1000.0,0.00022,60]
[340785611,1729817239603,483.9792619,0.00022,60]
[340785612,1729817269871,802.6912166,0.00016,5]
[340785637,1729817431967,-1133.4845094,0.00012271,2]
[340785639,1729817431977,-572.34747645,0.00012385,2]
[340785641,1729817431989,-363.82151092,0.00012385,2]
[340785643,1729817431999,-160.728946,0.00012464,2]
[340785645,1729817432009,-300.0,0.00012526,2]
[340785647,1729817432019,-300.0,0.00012526,2]
[340785649,1729817432029,-8061.543869,0.00012527,2]
[340785651,1729817432038,-160.728946,0.00012556,2]
[340785653,1729817432048,-160.728946,0.00012649,2]
[340785655,1729817432057,-160.728946,0.00012742,2]
[340785658,1729817432067,-400.0,0.000128,2]
[340785661,1729817432076,-160.728946,0.00012835,2]
[340785664,1729817432085,-160.728946,0.00012927,2]
[340785667,1729817432095,-160.728946,0.0001302,2]
[340785669,1729817432105,-160.728946,0.00013113,2]
[340785671,1729817432115,-2000.0,0.000135,2]
[340785673,1729817432125,-4498.67545988,0.00013578,2]
[340785676,1729817432135,-527.0,0.00013587,2]
[340785677,1729817432144,-1151.0,0.00013587,2]
[340785679,1729817432154,-2396.0,0.00013587,2]
[340785680,1729817432163,-168.43535171,0.00013588,2]
[340785681,1729817432173,-168.43535171,0.00013589,2]
[340785682,1729817432182,-168.43535171,0.00013589,2]
[340785683,1729817432192,-168.43535171,0.0001359,2]
[340785684,1729817432202,-168.43535171,0.0001359,2]
[340785685,1729817432212,-216.3131954,0.00013598,2]
[340785686,1729817432222,-599.23859194,0.00013606,2]
[340785687,1729817432232,-500.0,0.00013673,2]
[340785688,1729817432242,-500.0,0.00013673,2]
[340785689,1729817432252,-500.0,0.00013673,2]
[340785690,1729817432267,-507.4271702,0.00013673,2]
[340785691,1729817432276,-500.0,0.00013673,2]
[340785692,1729817432285,-500.0,0.00013673,2]
[340785693,1729817432295,-591.2668584,0.00013673,2]
[340785694,1729817432305,-500.0,0.00013673,2]
[340785695,1729817432315,-508.17477019,0.00013673,2]
[340785696,1729817432325,-500.0,0.00013673,2]
[340785697,1729817432335,-254.70268798,0.00013673,2]
[340785698,1729817432346,-500.0,0.00013673,2]
[340785699,1729817432356,-500.0,0.00013673,2]
[340785700,1729817432366,-500.0,0.00013673,2]
[340785701,1729817432376,-337.34424104,0.00013673,2]
[340785702,1729817432385,-35492.6139253,0.00013678,2]
[340785703,1729817432395,-12269.5848325,0.00013678,2]
[340785704,1729817432404,-23661.7426169,0.00013684,2]
[340785705,1729817432413,-8179.72322166,0.00013684,2]
[340785706,1729817432422,-11830.8713084,0.00013686,2]
[340785707,1729817432432,-4089.86161083,0.00013686,2]
[340785708,1729817432442,-106477.841776,0.00013688,2]
[340785709,1729817432452,-36808.7544975,0.00013688,2]
[340785710,1729817432462,-229.0,0.0001369,2]
[340785711,1729817432472,-101699.67034908,0.00013694,2]
[340785712,1729817432484,-10001.33201951,0.00013694,2]
[340785716,1729817438207,-500.0,0.00013673,2]
[340785717,1729817438219,-9717.93835208,0.00013694,2]
[340785718,1729817438231,-180.50865889,0.00013697,2]
[340785719,1729817438243,-569.67822817,0.00013697,2]
[340785720,1729817438256,-146.79402399,0.00013698,2]
[340785721,1729817438270,-750.0,0.00013698,2]
[340785722,1729817438280,-750.0,0.00013698,2]
[340785723,1729817438291,-151.0,0.00013698,2]
[340785724,1729817438301,-151.0,0.00013698,2]
[340785725,1729817438312,-153.723935,0.00013698,2]
[340785726,1729817438322,-610.97811077,0.00013698,2]
[340785727,1729817438335,-500.0,0.00013698,2]
[340785728,1729817438345,-500.0,0.00013698,2]
[340785729,1729817438356,-500.0,0.00013698,2]
[340785730,1729817438366,-500.0,0.00013698,2]
[340785731,1729817438376,-500.0,0.00013698,2]
[340785732,1729817438387,-500.0,0.00013698,2]
[340785733,1729817438398,-500.0,0.00013698,2]
[340785734,1729817438409,-500.0,0.00013698,2]
[340785735,1729817438419,-500.0,0.00013698,2]
[340785736,1729817438429,-500.0,0.00013698,2]
[340785737,1729817438440,-500.0,0.00013698,2]
[340785738,1729817438451,-429.89465949,0.00013698,2]
[340785739,1729817438462,-500.0,0.00013698,2]
[340785740,1729817438472,-151.0,0.00013698,2]
[340785741,1729817438483,-500.0,0.00013698,2]
[340785742,1729817438494,-500.0,0.00013698,2]
[340785743,1729817438503,-151.0,0.00013698,2]
[340785744,1729817438516,-500.0,0.00013698,2]
[340785745,1729817438528,-500.0,0.00013698,2]
[340785746,1729817438540,-350.0,0.00013698,2]
[340785747,1729817438551,-500.0,0.00013698,2]
[340785748,1729817438562,-500.0,0.00013698,2]
[340785749,1729817438573,-502.39234291,0.00013698,2]
[340785750,1729817438583,-500.0,0.00013698,2]
[340785751,1729817438595,-151.0,0.00013698,2]
[340785752,1729817438606,-500.0,0.00013698,2]
[340785753,1729817438616,-500.0,0.00013698,2]
[340785754,1729817438626,-500.0,0.00013698,2]
[340785755,1729817438638,-504.99659486,0.00013698,2]
[340785756,1729817438648,-730.86,0.00013698,2]
[340785757,1729817438659,-500.0,0.00013698,2]
[340785758,1729817438670,-500.0,0.00013698,2]
[340785759,1729817438680,-500.0,0.00013698,2]
[340785760,1729817438691,-500.0,0.00013698,2]
[340785761,1729817438702,-500.0,0.00013698,2]
[340785762,1729817438712,-500.0,0.00013698,2]
[340785763,1729817438723,-151.0,0.00013698,2]
[340785764,1729817438734,-500.0,0.00013698,2]
[340785765,1729817438745,-500.0,0.00013698,2]
[340785766,1729817438755,-500.0,0.00013698,2]
[340785767,1729817438766,-600.90232501,0.00013698,2]
[340785768,1729817438777,-500.0,0.00013698,2]